Workbook

Sheet HH Income
A2: Own It Economics
A3: US Household (HH) Income by Class
A5: US Population in 2014 | H5: The Lower Class*
A6: 318600000 | H6: % HH Pop. | I6: =L20 -> 0.2191746755
A7: US Median Income in 2014 | D7: ...in 2017 $ | F7: ...in 2018 $ | H7: % HH Inc. | I7: =M20 -> 0.0598430373
A8: =ROUNDUP(53657,-3) -> 54000 | D8: =ROUNDUP(A8*1.04,-3) -> 57000 | F8: =ROUNDUP(A8*1.0645,-3) -> 58000 | H8: The Middle Class*
A9: 67% of Median Income in 2014 | D9: ...in 2017 $ | F9: ...in 2018 $ | H9: % HH Pop. | I9: =L26 -> 0.6521013533
A10: =ROUNDDOWN(A8*0.67,-3) -> 36000 | D10: =ROUNDUP(A10*1.04,-3) -> 38000 | F10: =ROUNDDOWN(A10*1.0645,-3) -> 38000 | H10: % HH Inc. | I10: =M26 -> 0.5945290515
A11: 200% of Median Income in 2014 | D11: ...in 2017 $ | F11: ...in 2018 $ | H11: The Upper Class*
A12: =ROUNDUP(A8*2,-3) -> 108000 | D12: =ROUNDUP(A12*1.04,-3) -> 113000 | F12: =ROUNDUP(A12*1.0645,-3) -> 115000 | H12: % HH Pop. | I12: =L51 -> 0.1287239712
H13: % HH Inc. | I13: =M51 -> 0.3456128732
A15: Census Data Distribution of Household Income, 2014 | L15: Own It Classification
A17: HH Income | B17: Number of HH (1000) | C17: Percent | D17: Percentile | E17: Mean Income | F17: Mean number of earners | G17: Mean size of HH | H17: Population (est.) | I17: Aggregate mean income (AMI) (billions) | J17: Percent of agg. income | K17: Mean income per day | L17: % HH Pop. | M17: % HH Inc. | N17: Group AMI (billions)
A18: Total | B18: 124587 | C18: 1 | D18: — | E18: 75738 | F18: 1.28 | G18: 2.54 | H18: =A6 -> 318600000 | I18: =B18*1000*E18/1000000000 -> 9435.970206 | J18: 1 | K18: =E18/365 -> 207.5013699
A19: Under $5,000 | B19: 4571 | C19: 0.0367 | D19: 0 | E19: 1080 | F19: 0.2 | G19: 1.91 | H19: =B19*G19 * 1000*$H$62 -> 8833501.723 | I19: 4.93668 | J19: =I19/$I$18 -> 0.0005231767261 | K19: 2.95890411 | L19: The Lower Class
A20: $5,000 to $9,999 | B20: 4320 | C20: 0.0347 | D20: 3.67th | E20: 7936 | F20: 0.34 | G20: 1.78 | H20: 7780223.243 | I20: 34.28352 | J20: 0.003633279806 | K20: 21.74246575 | L20: =SUM(H19:H24)/$H$61 -> 0.2191746755 | M20: =SUM(J19:J24) -> 0.0598430373 | N20: =SUM(I19:I24) -> 564.677117
A21: $10,000 to $14,999 | B21: 6766 | C21: 0.0543 | D21: 7.14th | E21: 12317 | F21: 0.39 | G21: 1.71 | H21: 11706212.77 | I21: 83.336822 | J21: 0.008831823351 | K21: 33.74520548
A22: $15,000 to $19,999 | B22: 6779 | C22: 0.0544 | D22: 12.57th | E22: 17338 | F22: 0.54 | G22: 1.9 | H22: 13031894.17 | I22: 117.534302 | J22: 0.01245598486 | K22: 47.50136986
A23: $20,000 to $24,999 | B23: 6865 | C23: 0.0551 | D23: 18.01th | E23: 22162 | F23: 0.73 | G23: 2.07 | H23: 14378023.75 | I23: 152.14213 | J23: 0.016123634 | K23: 60.71780822
A24: $25,000 to $29,999 | B24: 6363 | C24: 0.0511 | D24: 23.52th | E24: 27101 | F24: 0.82 | G24: 2.19 | H24: 14099195.99 | I24: 172.443663 | J24: 0.01827513856 | K24: 74.24931507
A25: $30,000 to $34,999 | B25: 6232 | C25: 0.05 | D25: 28.63th | E25: 32058 | F25: 0.94 | G25: 2.27 | H25: 14313360.56 | I25: 199.785456 | J25: 0.02117275189 | K25: 87.83013699 | L25: The Middle Class
A26: $35,000 to $39,999 | B26: 5857 | C26: 0.047 | D26: 33.63th | E26: 37061 | F26: 1.04 | G26: 2.31 | H26: 13689119.46 | I26: 217.066277 | J26: 0.02300412912 | K26: 101.5369863 | L26: =SUM(H25:H49)/$H$61 -> 0.6521013533 | M26: =SUM(J25:J49) -> 0.5945290515 | N26: =SUM(I25:I49) -> 5609.958417
A27: $40,000 to $44,999 | B27: 5430 | C27: 0.0436 | D27: 38.33th | E27: 41979 | F27: 1.15 | G27: 2.4 | H27: 13185584.34 | I27: 227.94597 | J27: 0.02415713117 | K27: 115.0109589
A28: $45,000 to $49,999 | B28: 5060 | C28: 0.0406 | D28: 42.69th | E28: 47207 | F28: 1.24 | G28: 2.52 | H28: 12901475.06 | I28: 238.86742 | J28: 0.02531455852 | K28: 129.3342466
A29: $50,000 to $54,999 | B29: 5084 | C29: 0.0408 | D29: 46.75th | E29: 51986 | F29: 1.32 | G29: 2.54 | H29: 13065546.14 | I29: 264.296824 | J29: 0.02800950175 | K29: 142.4273973
A30: $55,000 to $59,999 | B30: 4220 | C30: 0.0339 | D30: 50.83th | E30: 57065 | F30: 1.41 | G30: 2.56 | H30: 10930517.55 | I30: 240.8143 | J30: 0.02552088389 | K30: 156.3424658
A31: $60,000 to $64,999 | B31: 4477 | C31: 0.0359 | D31: 54.22th | E31: 62016 | F31: 1.46 | G31: 2.64 | H31: 11958572.22 | I31: 277.645632 | J31: 0.0294241743 | K31: 169.9068493
A32: $65,000 to $69,999 | B32: 3709 | C32: 0.0298 | D32: 57.81th | E32: 67081 | F32: 1.51 | G32: 2.67 | H32: 10019738.89 | I32: 248.803429 | J32: 0.02636755136 | K32: 183.7835616
A33: $70,000 to $74,999 | B33: 3737 | C33: 0.03 | D33: 60.79th | E33: 72050 | F33: 1.57 | G33: 2.73 | H33: 10322242.42 | I33: 269.25085 | J33: 0.02853451676 | K33: 197.3972603
A34: $75,000 to $79,999 | B34: 3484 | C34: 0.028 | D34: 63.79th | E34: 77023 | F34: 1.6 | G34: 2.79 | H34: 9834916.095 | I34: 268.348132 | J34: 0.02843884902 | K34: 211.0219178
A35: $80,000 to $84,999 | B35: 3142 | C35: 0.0252 | D35: 66.58th | E35: 81966 | F35: 1.63 | G35: 2.79 | H35: 8869490.922 | I35: 257.537172 | J35: 0.02729313111 | K35: 224.5643836
A36: $85,000 to $89,999 | B36: 2750 | C36: 0.0221 | D36: 69.11th | E36: 87101 | F36: 1.77 | G36: 2.9 | H36: 8068986.731 | I36: 239.52775 | J36: 0.02538453861 | K36: 238.6328767
A37: $90,000 to $94,999 | B37: 2665 | C37: 0.0214 | D37: 71.31th | E37: 92033 | F37: 1.82 | G37: 2.96 | H37: 7981366.135 | I37: 245.267945 | J37: 0.0259928698 | K37: 252.1452055
A38: $95,000 to $99,999 | B38: 2339 | C38: 0.0188 | D38: 73.45th | E38: 97161 | F38: 1.81 | G38: 2.97 | H38: 7028699.573 | I38: 227.259579 | J38: 0.02408438921 | K38: 266.1945205
A39: $100,000 to $104,999 | B39: 2679 | C39: 0.0215 | D39: 75.33th | E39: 101921 | F39: 1.79 | G39: 3.01 | H39: 8158823.136 | I39: 273.046359 | J39: 0.0289367551 | K39: 279.2356164
A40: $105,000 to $109,999 | B40: 2070 | C40: 0.0166 | D40: 77.48th | E40: 107187 | F40: 1.88 | G40: 3.01 | H40: 6304129.859 | I40: 221.87709 | J40: 0.02351396678 | K40: 293.6630137
A41: $110,000 to $114,999 | B41: 1922 | C41: 0.0154 | D41: 79.14th | E41: 112069 | F41: 1.93 | G41: 3.12 | H41: 6067311.422 | I41: 215.396618 | J41: 0.02282718293 | K41: 307.0383562
A42: $115,000 to $119,999 | B42: 1623 | C42: 0.013 | D42: 80.68th | E42: 117133 | F42: 1.98 | G42: 3.14 | H42: 5156279.819 | I42: 190.106859 | J42: 0.02014703892 | K42: 320.9123288
A43: $120,000 to $124,999 | B43: 1863 | C43: 0.015 | D43: 81.99th | E43: 122127 | F43: 1.93 | G43: 3.09 | H43: 5824513.335 | I43: 227.522601 | J43: 0.02411226361 | K43: 334.5945205
A44: $125,000 to $129,999 | B44: 1452 | C44: 0.0117 | D44: 83.48th | E44: 127166 | F44: 1.99 | G44: 3.12 | H44: 4583629.649 | I44: 184.645032 | J44: 0.01956820846 | K44: 348.4
A45: $130,000 to $134,999 | B45: 1512 | C45: 0.0121 | D45: 84.65th | E45: 131863 | F45: 2 | G45: 3.18 | H45: 4864824.983 | I45: 199.376856 | J45: 0.02112944951 | K45: 361.2684932
A46: $135,000 to $139,999 | B46: 1219 | C46: 0.0098 | D46: 85.86th | E46: 137284 | F46: 1.98 | G46: 3.11 | H46: 3835768.64 | I46: 167.349196 | J46: 0.01773523997 | K46: 376.1205479
A47: $140,000 to $144,999 | B47: 1290 | C47: 0.0104 | D47: 86.84th | E47: 142199 | F47: 1.97 | G47: 3.03 | H47: 3954764.694 | I47: 183.43671 | J47: 0.01944015358 | K47: 389.5863014
A48: $145,000 to $149,999 | B48: 1024 | C48: 0.0082 | D48: 87.87th | E48: 147130 | F48: 2.01 | G48: 3.11 | H48: 3222171.524 | I48: 150.66112 | J48: 0.01596668034 | K48: 403.0958904
A49: $150,000 to $154,999 | B49: 1146 | C49: 0.0092 | D49: 88.70th | E49: 151940 | F49: 1.85 | G49: 3.12 | H49: 3617658.111 | I49: 174.12324 | J49: 0.01845313584 | K49: 416.2739726
A50: $155,000 to $159,999 | B50: 848 | C50: 0.0068 | D50: 89.62th | E50: 157177 | F50: 2.08 | G50: 3.15 | H50: 2702680.546 | I50: 133.286096 | J50: 0.01412531972 | K50: 430.6219178 | L50: The Upper Class
A51: $160,000 to $164,999 | B51: 875 | C51: 0.007 | D51: 90.30th | E51: 162019 | F51: 2.02 | G51: 3.13 | H51: 2771026.634 | I51: 141.766625 | J51: 0.0150240645 | K51: 443.8876712 | L51: =SUM(H50:H60)/$H$61 -> 0.1287239712 | M51: =SUM(J50:J60) -> 0.3456128732 | N51: =SUM(I50:I60) -> 3261.192774
A52: $165,000 to $169,999 | B52: 786 | C52: 0.0063 | D52: 91.00th | E52: 167101 | F52: 2.1 | G52: 3.16 | H52: 2513031.534 | I52: 131.341386 | J52: 0.01391922432 | K52: 457.8109589
A53: $170,000 to $174,999 | B53: 717 | C53: 0.0058 | D53: 91.63th | E53: 172169 | F53: 2.17 | G53: 3.21 | H53: 2328694.394 | I53: 123.445173 | J53: 0.01308240386 | K53: 471.6958904
A54: $175,000 to $179,999 | B54: 607 | C54: 0.0049 | D54: 92.21th | E54: 177187 | F54: 2.19 | G54: 3.28 | H54: 2014423.802 | I54: 107.552509 | J54: 0.01139813995 | K54: 485.4438356
A55: $180,000 to $184,999 | B55: 619 | C55: 0.005 | D55: 92.69th | E55: 182055 | F55: 2.03 | G55: 3.19 | H55: 1997881.115 | I55: 112.692045 | J55: 0.01194281484 | K55: 498.7808219
A56: $185,000 to $189,999 | B56: 556 | C56: 0.0045 | D56: 93.19th | E56: 187299 | F56: 2.03 | G56: 3.2 | H56: 1800168.174 | I56: 104.138244 | J56: 0.01103630488 | K56: 513.1479452
A57: $190,000 to $194,999 | B57: 485 | C57: 0.0039 | D57: 93.64th | E57: 192241 | F57: 2.19 | G57: 3.29 | H57: 1614455.007 | I57: 93.236885 | J57: 0.009881006718 | K57: 526.6876712
A58: $195,000 to $199,999 | B58: 436 | C58: 0.0035 | D58: 94.03th | E58: 197211 | F58: 2.23 | G58: 3.27 | H58: 1442522.353 | I58: 85.983996 | J58: 0.009112364084 | K58: 540.3041096
A59: $200,000 to $249,999 | B59: 3249 | C59: 0.0261 | D59: 94.38th | E59: 220267 | F59: 2.08 | G59: 3.24 | H59: 10650819.66 | I59: 715.647483 | J59: 0.07584249074 | K59: 603.4712329
A60: $250,000 and over | B60: 3757 | C60: 0.0302 | D60: 96.98th | E60: 402476 | G60: 2.94 | H60: 11175754.04 | I60: 1512.102332 | J60: 0.1602487396 | K60: 1102.673973
A61: Own It Economics Calculations: | F61: Check Totals: | H61: =SUM(H19:H60) -> 318600000.2 | I61: 9435.828308 | J61: 0.999984962 | L61: =SUM(L19:L58) -> 1 | M61: 0.999984962 | N61: 9435.828308
F62: Adjustment Factors: | H62: 1.01178517 | I62: 0.8817
A65: References
A67: US Census Bureau. (n.d.). Income Distribution to $250,000 or More for Households Retrieved from
A68: https://www.census.gov/data/tables/time-series/demo/income-poverty/cps-hinc/hinc-06.2014.html
A70: US Census Bureau. (n.d.). Selected Characteristics of Households, by Total Money Income in 2014. Retrieved from
A71: https://www.census.gov/data/tables/time-series/demo/income-poverty/cps-hinc/hinc-01.2014.html
A73: According to the Bureau of Labor Statistics consumer price index, prices in 2018 are 6.45% higher than prices in 2014.
A74: Official Data Foundation/Alioth LLC. (2018). CPI Inflation Calculator. Retrieved from
A75: http://www.in2013dollars.com/2014-dollars-in-2018
A77: Renwick, T. (2014, September 30). Examining the Middle Class in the United States Using the Lens of the Supplemental Poverty Measure. Retrieved from
A78: https://www.census.gov/content/dam/Census/library/working-papers/2014/demo/SEHSD-WP2014-30.pdf
A80: Distribution of Household Income. (2014). Retrieved from
A81: https://www.census.gov/library/visualizations/2015/demo/distribution-of-household-income--2014.html
A83: Credit Suisse Research Institute. (2015, October). Thought Leadership from Credit Suisse Research and the world’s foremost experts. Retrieved from
A84: http://publications.credit-suisse.com/tasks/render/file/index.cfm?fileid=C26E3824-E868-56E0-CCA04D4BB9B9ADD5
A86: * Based on 2017 surveys, from Gallup and others, finding that 62-70% of Americans self-identify as being in the middle class. 50% of those persons in one survey were found to have incomes between $50K and $125K in 2017. Our classification begins with the Pew Research Institute standard of middle class being from 67% to 200% of median income. This gives $36K to $108K in 2014. Then, we extend the range to $30K to $155K in 2014 dollars to capture 65% of the 2014 population. In 2018 dollars (using a 106.4% net change in the CPI as the basis for the change in buying power), this is a range of $32K to $165K.
A88: Newport, F. (2017, June 21). Middle-Class Identification in U.S. at Pre-Recession Levels. Retrieved from
A89: https://news.gallup.com/poll/212660/middle-class-identification-pre-recession-levels.aspx
A91: Martin, E. (2017, June 30). 70% of Americans consider themselves middle class—but only 50% are Retrieved from
A92: https://www.cnbc.com/2017/06/30/70-percent-of-americans-consider-themselves-middle-class-but-only-50-percent-are.html
A94: Northwestern Mutual (2017, June 21) 70% of Americans Identify as Middle Class Despite a Prolonged Decline in Middle-Income Households in the US. Retrieved from
A95: https://news.northwesternmutual.com/2017-06-21-70-of-Americans-Identify-as-Middle-Class-Despite-a-Prolonged-Decline-in-Middle-Income-Households-in-the-US

Sheet OIE Population
A2: Own It Economics
A3: Own It Participants Global Population
B5: Amount | C5: Units | D5: Notes
A6: Global Population, 2018 | B6: ='OIE GHG Calcs'!D7 -> 7633 | C6: million persons
A7: Low income or dependants | B7: =B6*0.9 -> 6869.7 | C7: million persons | D7: 90% [1]
A8: OIE population (middle/high income adults) | B8: =B6-B7 -> 763.3 | C8: million persons | D8: 10% [1]
A9: Low income adults | B9: =(B6*0.74)-B8 -> 4885.12 | C9: million persons | D9: 64% (74% minus 10%) [2]
A10: OIE percentage of adults in the world population | B10: =B8/(B8+B9) -> 0.1351351351
A12: Assumptions
A14: Approximately 10% of all persons globally are adults in middle/high income ("middle income" is defined as PPP equivalent of $50K or more USD 2015) in 2018.
A16: References
A18: 1 Credit Suisse Research Institute. (2015, October). Thought Leadership from Credit Suisse Research and the world’s foremost experts, p. 115. Retrieved from
A19: http://publications.credit-suisse.com/tasks/render/file/index.cfm?fileid=C26E3824-E868-56E0-CCA04D4BB9B9ADD5
A21: 2 "Globally, about 26 percent of the world is under 15 years of age," so about 74% are adults.
A22: As of 2017, in Africa, it is 41%, while in the rest of the world it ranges from 16% in Europe and 19% in North America, to 23 to 25% in Latin America, the Caribbean, Asia, and Oceania. Retrieved from
A23: Statista. (n.d.). Proportion of selected age groups of world population in 2017, by region. Retrieved from
A24: https://www.statista.com/statistics/265759/world-population-by-age-and-region/

Sheet OIE Carbon Calcs
A2: Own It Economics
A3: Carbon Calculations
B5: Number | C5: Units | D5: Notes
A6: Global Population, 2018 | B6: ='OIE GHG Calcs'!D7 -> 7633 | C6: million persons
A7: OIE Population (middle/high income adults), 2018 | B7: ='OIE Population'!B8 -> 763.3 | C7: million persons | D7: See Appendix Table "Own It Participants Global Population"
A9: Total Need, Atmospheric CO2e Reduction | B9: ='OIE GHG Calcs'!B14 -> 2580 | C9: Gt CO2e | D9: See OIE GHG Table
A10: Legacy (1850 to 2020) | B10: ='OIE GHG Calcs'!B8-'OIE GHG Calcs'!B6 -> 1135 | C10: Gt CO2e | D10: =B10/(B10+B11) -> 0.4399224806
A11: Future (2020 to 2050) | B11: =B9-B10 -> 1445 | C11: Gt CO2e | D11: =B11/(B10+B11) -> 0.5600775194
A13: OIE Responsibility
A14: OIE per capita | B14: =B9*1000000000/(B7*1000000) -> 3380.060265 | C14: t CO2e/person
A15: OIE per capita annually, 2020-2050 | B15: =B14/30 -> 112.6686755 | C15: t CO2e/person/year
A16: OIE per capita annually, 2020-2050, Legacy part | B16: =$B$15*$D10 -> 49.56548321 | C16: t CO2e/person/year | D16: =B10/(B10+B11) -> 0.4399224806
A17: OIE per capita annually, 2020-2050, Future part | B17: 63.10319228 | C17: t CO2e/person/year | D17: =B11/(B10+B11) -> 0.5600775194
A19: Unit Cost to Repair
A20: Best deals (2018) | B20: 5 | C20: $/t CO2e | D20: e.g. Mammoth Steppe strategy in Drawdown, planting trees, etc. This is for low hanging fruit, but long term cost will average much higher
A21: Typical | B21: 12 | C21: $/t CO2e
A22: Drawdown estimate | B22: 30 | C22: $/t CO2e | D22: Drawdown Plausible Scenario is at about $29.6/Gt, however this may include govenment spending.
A24: Total Cost to Repair | B24: =B9*$B$21/1000 -> 30.96 | C24: $ trillion | D24: Assuming $12/t
A25: For legacy (OIE L3) | B25: 13.62 | C25: $ trillion
A26: For future (OIE L4) | B26: 17.34 | C26: $ trillion
A28: Total Annual (2020-2050) Cost | B28: =B24/30 -> 1.032 | C28: $ trillion/year
A29: Per capita OIE population total cost | B29: =1000000*B24/B7 -> 40560.72318 | C29: $/person
A30: For legacy (OIE L3) | B30: =B29*B25/B24 -> 17843.57396 | C30: $/person
A31: For future (OIE L4) | B31: =B29*B26/B24 -> 22717.14922 | C31: $/person
A32: Per capita OIE population total annual cost, 2020-2050 | B32: =B29/30 -> 1352.024106 | C32: $/person/year
A33: For legacy (OIE L3), annual, 2020-2050 | B33: =B32*B25/B24 -> 594.7857985 | C33: $/person/year
A34: For future (OIE L4), annual, 2020-2050 | B34: =B32*B26/B24 -> 757.2383073 | C34: $/person/year
A36: OIE Adoption Rate (average, 2020-2050), estimate | B36: 0.33 | D36: Assumption (comparables: global smart phone usage, 2018: 36%; Facebook 2017: 2.2 billion)
A37: Per capita OIE population gross income (GDP) | B37: 62000 | C37: $/person/year | D37: Assuming $31,000/person, $62,000/household (PPP)
A38: Share of gross income, annual, est. OIE adoption rate | B38: =B32/(B37*$B$36) -> 0.0660813346
A39: For legacy (OIE L3), annual, est. OIE adoption rate | B39: =B33/(B37*$B$36) -> 0.02907066464
A40: For future (OIE L4), annual, est. OIE adoption rate | B40: =B34/(B37*$B$36) -> 0.03701066996
A42: Abbreviations Defined
A44: $ = 2018 US dollars
A45: t = metric ton or tonne
A46: Gt CO2e = Greehhouse gass equivalent to a gigaton (billion metric tons) of CO2, based on 100-year GWP estimates
A47: PPP = purchasing power parity
A49: References
A51: Credit Suisse Research Institute. (2015, October). Thought Leadership from Credit Suisse Research and the world’s foremost experts, p. 115. Retrieved from
A52: http://publications.credit-suisse.com/tasks/render/file/index.cfm?fileid=C26E3824-E868-56E0-CCA04D4BB9B9ADD5
A54: Hawken, Paul. Drawdown. Penguin Putnam Inc. (2017)
A56: The following stats were reviewed to assess viralability of a movement. When something makes people feel better and brings a higher quality to their lives, billions of people spending hundreds of dollars is not an issue.
A58: Statista. (n.d.). Number of smartphone users worldwide from 2014 to 2020 (in billions). Retrieved from
A59: https://www.statista.com/statistics/330695/number-of-smartphone-users-worldwide/
A61: Statista (n.d.). Number of monthly active Facebook users worldwide as of 2nd quarter 2018 (in millions) Retrieved from
A62: https://www.statista.com/statistics/264810/number-of-monthly-active-facebook-users-worldwide/

Sheet OIE GHG Calcs
A2: Own It Economics
A3: Greenhouse Gasses Calculations
A5: Year (CE) | B5: CO2e Gt Emissions OIE | C5: CO2e Gt Emissions Business as Usual | D5: Global Population (millions) | E5: Notes
A6: 1850 | B6: =$C6 -> 2230 | C6: =2190+40 -> 2230 | D6: 1200 | E6: Just beginning of industrialization, meaning moving from agrarian to factories. GDP rises, large family networks are no longer concentrated.
A7: 2018 | B7: 3290 | C7: =3190+100 -> 3290 | D7: 7633 | E7: Today
A8: 2020 | B8: =B7+75 -> 3365 | C8: =C7+75+5 -> 3370 | E8: Start of Drawdown scenarios
A9: 2030 | B9: =$C9-(B$14/3) -> 2990 | C9: =C8+(48*10) -> 3850 | D9: 8500
A10: 2040 | B10: =$C10-(2*B$14/3) -> 2610 | C10: 4330
A11: 2050 | B11: =$C11-(3*B$14/3) -> 2230 | C11: 4810 | D11: 9700 | E11: End of Drawdown scenarios
A12: Add'l CO2e Gt 2020-2050 | B12: =B11-B8 -> -1135 | C12: 1440
A13: CO2e Increase Since 1850 | B13: =B11-B6 -> 0 | C13: 2580
A14: CO2e Gt Sequestered with OIE Plan | B14: =C13 -> 2580 | C14: 0
A15: Average Annual Rate of CO2e Sequestration Gt per year by OIE population | B15: =B14/30 -> 86 | C15: 0
A17: Assumptions
A19: Legacy anthropogenic methane estimated to be 40 Gt CO2e up to 1850.
A20: Anthropogenic methane added 1850 to 2018 estimated to be 60 Gt CO2e based on 2016 atmospheric readings and 1850 estimate.
A21: While earlier and later dates defining the "pre-industrial" era are sometimes advocated by climate scientists, 1850 is used here.
A23: References
A25: Hawken, Paul. Drawdown: the most coprehensive plan ever proposed to reverse global warming. New York: Penguin Books 2017
A27: Global CH4 Levels (n.d.)
A28: http://www.methanelevels.org/
A30: UN Department of Economic and Social Affairs. (2015, July 29). World population projected to reach 9.7 billion by 2050. Retrieved from
A31: http://www.un.org/en/development/desa/news/population/2015-report.html
A33: Hawkins, Ed. (2017, January 25). Defining ‘pre-industrial’. Retrieved from
A34: https://www.climate-lab-book.ac.uk/2017/defining-pre-industrial/
A36: Climate Lab Book. (n.d.). Solar variations, volcanic eruptions & atmospheric greenhouse gas concentration. Retrieved from
A37: http://blogs.reading.ac.uk/climate-lab-book/files/2017/01/forcing_fig_simpler.png

Sheet OIE Plastics
A2: Own It Economics
A3: Plastics in Oceans Calculations
A5: Plastics in Oceans
A6: Period | B6: Total | C6: Units | D6: Rationale
A7: 2020 | B7: =B8-5*8 -> 210 | C7: Mt | D7: 2025 estimate minus estimated annual leakage of 8Mt per year [1]
A8: 2025 | B8: 250 | C8: Mt | D8: Ocean Conservancy Estimate [2]
A9: 2050 | B9: 937 | C9: Mt | D9: Study by McArthur Foundation as cited by Business Insider Article [3]
A11: Assumptions
A13: 8Mt plastic leaked to Oceans per year, 2006 to 2050.
A15: References
A17: 1 Jambeck, J. (2015, February 12). Plastic waste inputs from land into the ocean. Retrieved from
A18: https://www.iswa.org/fileadmin/user_upload/Calendar_2011_03_AMERICANA/Science-2015-Jambeck-768-71__2_.pdf (footnote 12)
A20: 2 Ocean Conservancy. (2015, September). Stemming the Tide: Land-based strategies for a plastic-free ocean. Retrieved from
A21: https://oceanconservancy.org/wp-content/uploads/2017/04/full-report-stemming-the.pdf
A23: 3 Harrington, R. (2016, January 26). By 2050, the oceans could have more plastic than fish. Retrieved from
A24: https://www.businessinsider.com/plastic-in-ocean-outweighs-fish-evidence-report-2017-1
A26: Additional Information
A28: Ellen MacArthur Foundation. (2016, January 19). The New Plastics Economy: Rethinking the future of plastics - download the infographics. Retrieved from
A29: https://www.ellenmacarthurfoundation.org/news/the-new-plastics-economy-rethinking-the-future-of-plastics-infographics
A31: Proportions of Plastics in Oceans, by Size, Estimate
A32: Geographic Segment | B32: Total Plastic | C32: Units | D32: % of Seg. | E32: % of Total
A33: GPGP Gyre | B33: =SUM(B34:B37) -> 78.4 | C33: Kt | D33: =B33/SUM($B$34:$B$37) -> 1 | E33: =B33/($B$47) -> 0.000392 | F33: Great Pacific Garbage Patch
A34: Megaplastics (>50 cm). | B34: 42 | C34: Kt | D34: 0.5357142857 | F34: e.g. fishing nets
A35: Macroplastics (5–50 cm) | B35: 20 | C35: Kt | D35: 0.2551020408 | F35: e.g. crates
A36: Mesoplastics (0.5–5 cm) | B36: 10 | C36: Kt | D36: 0.1275510204 | F36: e.g. bottle caps
A37: Microplastics (0.05–0.5 cm) | B37: 6.4 | C37: Kt | D37: 0.08163265306 | F37: e.g. pea-sized bits or smaller
A38: All 5 Gyres | B38: =B33*5 -> 392 | C38: Kt | D38: =B38/SUM($B$39:$B$42) -> 1 | E38: =B38/($B$47) -> 0.00196 | F38: Estimated at 5x GPGP
A39: Megaplastics (>50 cm). | B39: 210 | C39: Kt | D39: 0.5357142857 | F39: e.g. fishing nets
A40: Macroplastics (5–50 cm) | B40: 100 | C40: Kt | D40: 0.2551020408 | F40: e.g. crates
A41: Mesoplastics (0.5–5 cm) | B41: 50 | C41: Kt | D41: 0.1275510204 | F41: e.g. bottle caps
A42: Microplastics (0.05–0.5 cm) | B42: 32 | C42: Kt | D42: 0.08163265306 | F42: e.g. pea-sized bits or smaller
A43: Outside Gyres | B43: =B47*E43 -> 199608 | C43: Kt | D43: =SUM(D44:D46) -> 1 | E43: =1-E38 -> 0.99804 | F43: Including beaches
A44: Macroplastics (5–50 cm) | B44: =$B$43*D44 -> 109674.7253 | C44: Kt | D44: =D35/SUM($D$35:$D$37) -> 0.5494505495
A45: Mesoplastics (0.5–5 cm) | B45: 54837.36264 | C45: Kt | D45: 0.2747252747
A46: Microplastics (0.05–0.5 cm) | B46: 35095.91209 | C46: Kt | D46: 0.1758241758
A47: Total | B47: 200000 | C47: Kt | D47: =B47/SUM($B$48:$B$51) -> 1 | E47: 1 | F47: Average of estimate methods 1 and 2
A48: Megaplastics (>50 cm). | B48: =B39 -> 210 | C48: Kt | D48: 0.00105
A49: Macroplastics (5–50 cm) | B49: =B40+B44 -> 109774.7253 | C49: Kt | D49: 0.5488736264
A50: Mesoplastics (0.5–5 cm) | B50: 54887.36264 | C50: Kt | D50: 0.2744368132
A51: Microplastics (0.05–0.5 cm) | B51: 35127.91209 | C51: Kt | D51: 0.1756395604
A53: Assumptions:
A54: Amount of plastic by weight in all 5 gyres is roughly 5 times (5x) that of the GPGP.
A55: Size composition of ocean plastic resembles GPGP, except that only gyres contain significant amounts of megaplastic.
A57: References
A59: Lebreton, L. (2018, March 22). Evidence that the Great Pacific Garbage Patch is rapidly accumulating plastic. Retrieved from
A60: https://www.nature.com/articles/s41598-018-22939-w
A62: Ocean Plastic Clean-Up Costs
A63: Geographic Segment | B63: Number | C63: Measurement
A64: GPGP cost, big plastics | B64: 370 | C64: M $
A65: All 5 gyres, big plastics | B65: =B64*5 -> 1850 | C65: M $
A66: All 5 gyres, all plastics | B66: =B65/SUM($D$39:$D$41) -> 2014.444444 | C66: M $
A67: All ocean areas | B67: =B68*B9/B8 -> 3775068.889 | C67: M $
A68: All ocean areas, legacy | B68: =B66/0.002 -> 1007222.222 | C68: M $
A69: All ocean areas, future | B69: =B67-B68 -> 2767846.667 | C69: M $
A70: OIE population | B70: 763 | C70: million persons
A71: OIE responsibility per person | B71: =B67/763 -> 4947.665647 | C71: /person for lifetime
A72: OIE total responsibility per year | B72: =B71/30 -> 164.9221882 | C72: /person/yr for 30 years
A73: OIE responsibility per year, 2020–2050 (OIE Level 3) | B73: =B72*(B67-B68)/B67 -> 120.9194699 | C73: /person/yr for 30 years
A74: OIE responsibility per year, legacy (OIE Level 4) | B74: =B72*B68/B67 -> 44.00271831 | C74: /person/yr for 30 year
A75: OIE total responsibility per month | B75: 13.75 | C75: /person/month for 30 years
A77: Assumptions:
A78: Costs for cleaning all areas of the ocean (and beaches) of all sizes of plastic particles will be equivalent to costs per pound of cleaning GPGP per OceanCleanup.org estimates. See Reference below at pg. 21.
A79: Scaled-down OceanCleanup.org approaches and other technological advances will allow near 100% cleanup of all parts of ocean and all particle sizes.
A80: Size composition of ocean plastic resembles GPGP, except that only gyres contain significant amounts of megaplastic.
A81: Amount of plastic by weight in all 5 gyres is roughly 5 times (5x) that of the GPGP.
A83: References
A85: Slat, B. (2014). How the Oceans Can Clean Themselves—A Feasability Study. Retrieved from
A86: https://www.theoceancleanup.com/fileadmin/media-archive/Documents/TOC_Feasibility_study_executive_summary_V2_0.pdf

Sheet OIE Poverty
A2: Own It Economics
A3: Poverty Calculations
A4: Poverty
B5: Period Cost | C5: Units | D5: Years | E5: Total Cost | F5: Units | G5: Notes
A6: Extreme Poverty, Cost to End [1] (Cost x Years = Total) | B6: =66*1.09 -> 71.94 | C6: Billion Dollars per Year | D6: 10 | E6: =B6*D6 -> 719.4 | F6: Billion Dollars | G6: Cost for ending extreme poverty (those living on less than $1.25 US per day) in 2013.
A7: Poverty, Cost to End [2] (Cost x Years = Total) | B7: =B6*1.07*(3/1.3) -> 177.6364615 | C7: Billion Dollars per Year | D7: 10 | E7: 1776.364615 | F7: Billion Dollars | G7: In 2015, the poverty threshold was estimated to be those living on less than $2.50 US per day.
A8: Extreme Poverty, Cost per OIE Person (Cost / Years = Total Cost per Person Per Year) | B8: =(B7*1000000000)/('OIE Population'!B8*1000000) -> 232.7216842 | C8: Dollars per Year | D8: 10 | E8: 2327.216842 | F8: Dollars
A9: Poverty, Cost per OIE Person (Cost / Years = Total per Person Per Year) | B9: =B8*2 -> 465.4433684 | C9: Dollars per Year | D9: 10 | E9: 4654.433684 | F9: Dollars
A10: Poverty, Cost per OIE Person, Per Month | B10: =B9/12 -> 38.78694736 | C10: Dollars per Month | D10: 10 | E10: =B10*D10*12 -> 4654.433684 | F10: Dollars
A12: Assumptions
A14: The global poverty threshold often used is two times the threshold used for extreme poverty, thus the cost per person to eradicate poverty is estimated to be about twice the amount per person to eradicate extreme poverty. The UN estimates that 3 billion people lived in poverty (living on less than $2.50 US per day) and 1.3 billion in extreme poverty (living on less than $1.25 US per day) in 2014 [2]. Since there are a few more people in poverty, but not extreme poverty, than are in extreme poverty, in the table above, ending poverty is assumed to cost 2.3 (3.0/1.3) times the amount needed to end extreme poverty. We acknowledge that this does not address possible differences in the efficiency of dollars spent on eradication of extreme poverty versus poverty that is not as extreme. As always, we encourage feedback on these assumptions.
A16: Figures shown in other sources (e.g. Drezner[3]) often show much larger costs for the elimination of extreme poverty, these typically include the current amount of foreign aid. The current analysis addresses the amount needed in addition to the current levels of foreign aid.
A18: All figures adjusted to 2019 dollars. 2013 dollars are estimated as 1.09 2019 dollars. 2015 dollars are estimated as 1.07 2019 dollars. Based on https://www.usinflationcalculator.com.
A20: References
A21: 1 OXFAM. (2013, January 18). OXFAM Media Briefing. Retrieved from
A22: https://www.oxfam.org/en/pressroom/pressreleases/2013-01-19/annual-income-richest-100-people-enough-end-global-poverty-four
A24: 2 United Nations Development Programme. (2014). "Sustaining Human Progress: Reducing Vulnerabilities and Building Resilience." Human Development Report. Retrieved from
A25: https://www.dosomething.org/us/facts/11-facts-about-global-poverty
A27: 3 Drezner, Daniel W. (2005, April 24). The End of Poverty': Brother, Can You Spare $195 Billion?. Retrieved from
A28: https://www.nytimes.com/2005/04/24/books/review/the-end-of-poverty-brother-can-you-spare-195-billion.html
A30: 4 Brooking Institute. (2016, January 20). The global poverty gap is falling. Billionaires could help close it. Retrieved from
A31: https://www.brookings.edu/blog/up-front/2016/01/20/the-global-poverty-gap-is-falling-billionaires-could-help-close-it
